fUSD/lending_fUSD_20250522
["ID","MTS","AMOUNT","RATE_DAILY","PERIOD"]
[362005737,1747933866463,-151.0,0.00033697,7]
[362005738,1747933866473,-170.355431,0.00033697,7]
[362005739,1747933866484,-1494.6813242,0.00033697,2]
[362005740,1747933866493,-49932.5968333,0.00033697,2]
[362005741,1747933866503,-151.0,0.00033697,7]
[362005742,1747933866513,-10261.2181236,0.00033697,2]
[362005743,1747933866523,-3634.7394146,0.00033697,2]
[362005744,1747933866532,-61576.2238404,0.00033697,2]
[362005745,1747933866542,-500.0,0.00033697,5]
[362005746,1747933866551,-500.0,0.00033697,5]
[362005747,1747933866561,-2036.0,0.00033698,5]
[362005748,1747933866570,-151.0,0.00033698,7]
[362005749,1747933866580,-151.0,0.00033698,7]
[362005750,1747933866589,-254.173113,0.00033698,7]
[362005751,1747933866599,-151.0,0.00033698,7]
[362005752,1747933866609,-151.0,0.00033698,7]
[362005753,1747933866619,-251.98,0.00033698,2]
[362005754,1747933866628,-420.0,0.00033698,5]
[362005755,1747933866638,-420.0,0.00033698,5]
[362005756,1747933866648,-420.0,0.00033698,5]
[362005757,1747933866658,-151.0,0.00033698,7]
[362005758,1747933866667,-420.0,0.00033698,5]
[362005759,1747933866677,-420.0,0.00033698,5]
[362005760,1747933866687,-420.0,0.00033698,5]
[362005761,1747933866697,-617.84,0.00033698,5]
[362005762,1747933866707,-557.43,0.00033698,5]
[362005763,1747933866718,-420.0,0.00033698,5]
[362005764,1747933866728,-420.0,0.00033698,5]
[362005765,1747933866744,-433.93,0.00033698,5]
[362005766,1747933866762,-420.0,0.00033698,5]
[362005767,1747933866774,-468.52,0.00033698,5]
[362005768,1747933866784,-420.0,0.00033698,5]
[362005769,1747933866793,-420.0,0.00033698,5]
[362005770,1747933866803,-420.0,0.00033698,5]
[362005771,1747933866813,-420.0,0.00033698,5]
[362005772,1747933866822,-420.0,0.00033698,5]
[362005773,1747933866832,-420.0,0.00033698,5]
[362005774,1747933866842,-420.0,0.00033698,5]
[362005775,1747933866852,-420.0,0.00033698,5]
[362005776,1747933866861,-453.05,0.00033698,5]
[362005777,1747933866873,-420.0,0.00033698,5]
[362005778,1747933866883,-420.0,0.00033698,5]
[362005779,1747933866892,-457.43,0.00033698,5]
[362005780,1747933866901,-420.0,0.00033698,5]
[362005781,1747933866911,-550.44,0.00033698,5]
[362005782,1747933866921,-420.0,0.00033698,5]
[362005783,1747933866930,-420.0,0.00033698,5]
[362005784,1747933866940,-659.52,0.00033698,5]
[362005785,1747933866949,-420.0,0.00033698,5]
[362005786,1747933866959,-420.0,0.00033698,5]
[362005787,1747933866968,-420.0,0.00033698,5]
[362005788,1747933866978,-420.0,0.00033698,5]
[362005789,1747933866988,-420.0,0.00033698,5]
[362005790,1747933866997,-577.96,0.00033698,5]
[362005791,1747933867007,-463.1,0.00033698,5]
[362005792,1747933867016,-547.33,0.00033698,5]
[362005793,1747933867027,-420.0,0.00033698,5]
[362005794,1747933867037,-420.0,0.00033698,5]
[362005795,1747933867046,-420.0,0.00033698,5]
[362005796,1747933867056,-420.0,0.00033698,5]
[362005797,1747933867065,-463.0,0.00033698,5]
[362005798,1747933867075,-599.91,0.00033698,5]
[362005799,1747933867084,-420.0,0.00033698,5]
[362005800,1747933867094,-464.52,0.00033698,5]
[362005801,1747933867104,-486.25,0.00033698,5]
[362005802,1747933867114,-420.0,0.00033698,5]
[362005803,1747933867123,-697.31,0.00033698,5]
[362005804,1747933867133,-420.0,0.00033698,5]
[362005805,1747933867143,-420.0,0.00033698,5]
[362005806,1747933867153,-420.0,0.00033698,5]
[362005807,1747933867163,-420.0,0.00033698,5]
[362005808,1747933867172,-420.0,0.00033698,5]
[362005809,1747933867182,-357.35840886,0.00033698,5]
[362005810,1747933867192,-420.0,0.00033698,5]
[362005811,1747933867202,-420.0,0.00033698,5]
[362005812,1747933867212,-420.0,0.00033698,5]
[362005813,1747933867221,-420.0,0.00033698,5]
[362005814,1747933867231,-420.0,0.00033698,5]
[362005815,1747933867240,-420.0,0.00033698,5]
[362005816,1747933867250,-420.0,0.00033698,5]
[362005817,1747933867260,-529.35,0.00033698,5]
[362005818,1747933867270,-420.0,0.00033698,5]
[362005819,1747933867280,-420.0,0.00033698,5]
[362005820,1747933867290,-420.0,0.00033698,5]
[362005821,1747933867299,-420.0,0.00033698,5]
[362005822,1747933867309,-420.0,0.00033698,5]
[362005823,1747933867318,-420.0,0.00033698,5]
[362005824,1747933867328,-468.75,0.00033698,5]
[362005825,1747933867338,-420.0,0.00033698,5]
[362005826,1747933867348,-662.62,0.00033698,5]
[362005827,1747933867358,-420.0,0.00033698,5]
[362005828,1747933867368,-420.0,0.00033698,5]
[362005829,1747933867378,-628.66,0.00033698,5]
[362005830,1747933867387,-420.0,0.00033698,5]
[362005831,1747933867397,-420.0,0.00033698,5]
[362005832,1747933867406,-540.64316055,0.00033698,5]
[362005833,1747933867416,-420.0,0.00033698,5]
[362005834,1747933867425,-420.0,0.00033698,5]
[362005835,1747933867435,-420.0,0.00033698,5]
[362005836,1747933867444,-510.99,0.00033698,5]
[362005837,1747933867454,-420.0,0.00033698,5]
[362005838,1747933867464,-642.96,0.00033698,5]
[362005839,1747933867473,-442.25,0.00033698,5]
[362005840,1747933867483,-420.0,0.00033698,5]
[362005841,1747933867492,-420.0,0.00033698,5]
[362005842,1747933867503,-420.0,0.00033698,5]
[362005843,1747933867512,-420.0,0.00033698,5]
[362005844,1747933867522,-568.63968783,0.00033698,5]
[362005845,1747933867532,-420.0,0.00033698,5]
[362005846,1747933867541,-420.0,0.00033698,5]
[362005847,1747933867550,-469.92,0.00033698,5]
[362005848,1747933867560,-867.63,0.00033698,5]
[362005849,1747933867569,-420.0,0.00033698,5]
[362005850,1747933867579,-589.11,0.00033698,5]
[362005851,1747933867588,-420.0,0.00033698,5]
[362005852,1747933867598,-420.0,0.00033698,5]
[362005853,1747933867607,-420.0,0.00033698,5]
[362005854,1747933867945,-420.0,0.00033698,5]
[362005855,1747933867956,-420.0,0.00033698,5]
[362005856,1747933867966,-466.21,0.00033698,5]
[362005857,1747933867975,-420.0,0.00033698,5]
[362005858,1747933867986,-420.0,0.00033698,5]
[362005859,1747933867995,-420.0,0.00033698,5]
[362005860,1747933868005,-420.0,0.00033698,5]
[362005861,1747933868014,-420.0,0.00033698,5]
[362005862,1747933868023,-420.0,0.00033698,5]
[362005863,1747933868033,-454.28,0.00033698,5]
[362005864,1747933868043,-464.75,0.00033698,5]
[362005865,1747933868052,-420.0,0.00033698,5]
[362005866,1747933868061,-543.11,0.00033698,5]
[362005867,1747933868071,-420.0,0.00033698,5]
[362005868,1747933868080,-420.0,0.00033698,5]
[362005869,1747933868089,-510.32,0.00033698,5]
[362005870,1747933868099,-561.89,0.00033698,5]
[362005871,1747933868108,-420.0,0.00033698,5]
[362005872,1747933868117,-482.92,0.00033698,5]
[362005873,1747933868127,-640.96,0.00033698,5]
[362005874,1747933868136,-628.61,0.00033698,5]
[362005875,1747933868145,-676.98,0.00033698,5]
[362005876,1747933868155,-420.0,0.00033698,5]
[362005877,1747933868164,-508.22,0.00033698,5]
[362005878,1747933868174,-420.0,0.00033698,5]
[362005879,1747933868184,-420.0,0.00033698,5]
[362005880,1747933868193,-428.04,0.00033698,5]
[362005881,1747933868202,-438.13,0.00033698,5]
[362005882,1747933868212,-420.0,0.00033698,5]
[362005883,1747933868221,-928.4,0.00033698,5]
[362005884,1747933868231,-420.0,0.00033698,5]
[362005885,1747933868242,-485.06,0.00033698,5]
[362005886,1747933868251,-559.16,0.00033698,5]
[362005887,1747933868261,-851.37,0.00033698,5]
[362005888,1747933868270,-420.0,0.00033698,5]
[362005889,1747933868280,-455.05,0.00033698,5]
[362005890,1747933868289,-281.8,0.00033698,5]
[362005891,1747933868299,-451.54,0.00033698,5]
[362005892,1747933868308,-488.65,0.00033698,5]
[362005893,1747933868317,-420.0,0.00033698,5]
[362005894,1747933868327,-420.0,0.00033698,5]
[362005895,1747933868336,-420.0,0.00033698,5]
[362005896,1747933868345,-439.74,0.00033698,5]
[362005897,1747933868355,-420.0,0.00033698,5]
[362005898,1747933868364,-579.3,0.00033698,5]
[362005899,1747933868373,-420.0,0.00033698,5]
[362005900,1747933868383,-1187.49,0.00033698,5]
[362005901,1747933868393,-456.47,0.00033698,5]
[362005902,1747933868402,-585.77,0.00033698,5]
[362005903,1747933868411,-485.73,0.00033698,5]
[362005904,1747933868421,-420.0,0.00033698,5]
[362005905,1747933868431,-420.0,0.00033698,5]
[362005906,1747933868440,-420.0,0.00033698,5]
[362005907,1747933868450,-688.23,0.00033698,5]
[362005908,1747933868460,-637.3,0.00033698,5]
[362005909,1747933868469,-420.0,0.00033698,5]
[362005910,1747933868479,-473.24,0.00033698,5]
[362005911,1747933868489,-535.16,0.00033698,5]
[362005912,1747933868499,-420.0,0.00033698,5]
[362005913,1747933868508,-420.0,0.00033698,5]
[362005914,1747933868517,-420.0,0.00033698,5]
[362005915,1747933868527,-420.0,0.00033698,5]
[362005916,1747933868536,-420.0,0.00033698,5]
[362005917,1747933868546,-420.0,0.00033698,5]
[362005918,1747933868555,-420.0,0.00033698,5]
[362005919,1747933868565,-420.0,0.00033698,5]
[362005920,1747933868575,-1350.67,0.00033698,5]
[362005921,1747933868584,-420.0,0.00033698,5]
[362005922,1747933868594,-420.0,0.00033698,5]
[362005923,1747933868603,-420.0,0.00033698,5]
[362005924,1747933868613,-420.0,0.00033698,5]
[362005925,1747933868623,-501.6,0.00033698,5]
[362005926,1747933868633,-607.22,0.00033698,5]
[362005927,1747933868643,-420.0,0.00033698,5]
[362005928,1747933868653,-420.0,0.00033698,5]
[362005929,1747933868662,-470.61,0.00033698,5]
[362005930,1747933868673,-566.25,0.00033698,5]
[362005931,1747933868683,-420.0,0.00033698,5]
[362005932,1747933868693,-711.61,0.00033698,5]
[362005933,1747933868704,-475.69,0.00033698,5]
[362005934,1747933868713,-420.0,0.00033698,5]
[362005935,1747933868723,-454.53,0.00033698,5]
[362005936,1747933868732,-420.0,0.00033698,5]
[362005937,1747933868745,-420.0,0.00033698,5]
[362005938,1747933868755,-420.0,0.00033698,5]
[362005939,1747933868765,-256.29972269,0.00033698,5]
[362005940,1747933868774,-420.0,0.00033698,5]
[362005941,1747933868785,-545.9,0.00033698,5]
[362005942,1747933868794,-420.0,0.00033698,5]
[362005943,1747933868803,-420.0,0.00033698,5]
[362005944,1747933868814,-589.57,0.00033698,5]
[362005945,1747933868824,-1563.4,0.00033698,5]
[362005946,1747933868835,-420.0,0.00033698,5]
[362005947,1747933868845,-481.76,0.00033698,5]
[362005948,1747933868854,-420.0,0.00033698,5]
[362005949,1747933868864,-420.0,0.00033698,10]
[362005950,1747933868873,-420.0,0.00033698,5]
[362005951,1747933868883,-586.37,0.00033698,5]
[362005952,1747933868893,-559.24,0.00033698,5]
[362005953,1747933868902,-420.0,0.00033698,5]
[362005954,1747933868912,-420.0,0.00033698,5]
[362005955,1747933868922,-1122.81,0.00033698,5]
[362005956,1747933868932,-420.0,0.00033698,5]
[362005957,1747933868941,-420.0,0.00033698,5]
[362005958,1747933868950,-420.0,0.00033698,5]
[362005959,1747933868960,-420.0,0.00033698,5]
[362005960,1747933868970,-727.36,0.00033698,5]
[362005961,1747933868980,-577.39,0.00033698,5]
[362005962,1747933868991,-420.0,0.00033698,5]
[362005963,1747933869001,-644.15,0.00033698,5]
[362005964,1747933869010,-300.0,0.00033698,5]
[362005965,1747933869019,-572.15,0.00033698,5]
[362005966,1747933869029,-532.67,0.00033698,5]
[362005967,1747933869039,-493.12,0.00033698,5]
[362005968,1747933869048,-459.75,0.00033698,5]
[362005969,1747933869057,-843.51,0.00033698,5]
[362005970,1747933869067,-420.0,0.00033698,5]
[362005971,1747933869076,-420.0,0.00033698,5]
[362005972,1747933869086,-420.0,0.00033698,5]
[362005973,1747933869096,-420.0,0.00033698,5]
[362005974,1747933869105,-593.15,0.00033698,5]
[362005975,1747933869115,-420.0,0.00033698,5]
[362005976,1747933869124,-797.22,0.00033698,5]
[362005977,1747933869134,-533.84,0.00033698,5]
[362005978,1747933869144,-529.35,0.00033698,5]
[362005979,1747933869153,-592.14,0.00033698,5]
[362005980,1747933869163,-420.0,0.00033698,5]
[362005981,1747933869173,-420.0,0.00033698,5]
[362005982,1747933869182,-682.38,0.00033698,5]
[362005983,1747933869192,-920.85,0.00033698,5]
[362005984,1747933869202,-603.95,0.00033698,5]
[362005985,1747933869211,-420.0,0.00033698,5]
[362005986,1747933869222,-420.0,0.00033698,5]
[362005987,1747933869231,-420.0,0.00033698,5]
[362005988,1747933869242,-438.47,0.00033698,5]
[362005989,1747933869252,-420.0,0.00033698,5]
[362005990,1747933869261,-779.53,0.00033698,5]
[362005991,1747933869271,-420.0,0.00033698,5]
[362005992,1747933869280,-420.0,0.00033698,5]
[362005993,1747933869290,-420.0,0.00033698,5]
[362005994,1747933869300,-477.74,0.00033698,5]
[362005995,1747933869309,-482.75,0.00033698,5]
[362005996,1747933869319,-420.0,0.00033698,5]
[362005997,1747933869328,-420.0,0.00033698,5]
[362005998,1747933869338,-430.85,0.00033698,5]
[362005999,1747933869347,-420.0,0.00033698,5]
[362006000,1747933869356,-420.0,0.00033698,5]
[362006001,1747933869366,-420.0,0.00033698,5]
[362006002,1747933869375,-420.0,0.00033698,5]
[362006003,1747933869386,-420.0,0.00033698,5]
[362006004,1747933869395,-420.0,0.00033698,5]
[362006005,1747933869405,-669.62,0.00033698,5]
[362006006,1747933869415,-420.0,0.00033698,5]
[362006007,1747933869425,-420.0,0.00033698,5]
[362006008,1747933869435,-420.0,0.00033698,5]
[362006009,1747933869445,-508.77,0.00033698,5]
[362006010,1747933869455,-420.0,0.00033698,5]
[362006011,1747933869465,-420.0,0.00033698,5]
[362006012,1747933869475,-420.0,0.00033698,5]
[362006013,1747933869485,-495.88,0.00033698,5]
[362006014,1747933869495,-420.0,0.00033698,5]
[362006015,1747933869504,-459.41,0.00033698,5]
[362006016,1747933869514,-420.0,0.00033698,5]
[362006017,1747933869524,-420.0,0.00033698,5]
[362006018,1747933869533,-539.96,0.00033698,5]
[362006019,1747933869542,-420.0,0.00033698,5]
[362006020,1747933869552,-420.0,0.00033698,5]
[362006021,1747933869561,-500.0,0.00033698,5]
[362006022,1747933869571,-525.35,0.00033698,5]
[362006023,1747933869580,-420.0,0.00033698,5]
[362006024,1747933869589,-510.6,0.00033698,5]
[362006025,1747933869598,-420.0,0.00033698,5]
[362006026,1747933869608,-420.0,0.00033698,5]
[362006027,1747933869617,-420.0,0.00033698,5]
[362006028,1747933869626,-442.76,0.00033698,5]
[362006029,1747933869636,-420.0,0.00033698,5]
[362006030,1747933869646,-420.0,0.00033698,5]
[362006031,1747933869655,-420.0,0.00033698,5]
[362006032,1747933869664,-494.37,0.00033698,5]
[362006033,1747933869673,-420.0,0.00033698,5]
[362006034,1747933869683,-420.0,0.00033698,5]
[362006035,1747933869693,-420.0,0.00033698,5]
[362006036,1747933869702,-420.0,0.00033698,5]
[362006037,1747933869712,-253.16419296,0.00033698,5]
[362006038,1747933869721,-420.0,0.00033698,5]
[362006039,1747933869730,-809.26,0.00033698,5]
[362006040,1747933869743,-420.0,0.00033698,5]
[362006041,1747933869754,-420.0,0.00033698,5]
[362006042,1747933869763,-420.0,0.00033698,5]
[362006043,1747933869773,-420.0,0.00033698,5]
[362006044,1747933869784,-420.0,0.00033698,5]
[362006045,1747933869793,-769.8,0.00033698,5]
[362006046,1747933869803,-420.0,0.00033698,5]
[362006047,1747933869812,-977.72,0.00033698,5]
[362006048,1747933869823,-348.28775639,0.00033698,5]
[362006049,1747933869833,-460.19,0.00033698,5]
[362006050,1747933869843,-466.15,0.00033698,5]
[362006051,1747933869853,-325.11129731,0.00033698,5]
[362006052,1747933869863,-845.24,0.00033698,5]
[362006053,1747933869872,-734.6,0.00033698,5]
[362006054,1747933869881,-420.0,0.00033698,5]
[362006055,1747933869891,-538.80104879,0.00033698,5]
[362006056,1747933869899,-638.11,0.00033698,5]
[362006057,1747933869909,-508.6,0.00033698,5]
[362006058,1747933869920,-465.09,0.00033698,5]
[362006059,1747933869930,-1581.76,0.00033698,5]
[362006060,1747933869940,-506.29426515,0.00033698,5]
[362006061,1747933869950,-437.18,0.00033698,5]
[362006062,1747933869961,-420.0,0.00033698,5]
[362006063,1747933869971,-420.0,0.00033698,5]
[362006064,1747933869980,-420.0,0.00033698,5]
[362006065,1747933869990,-870.21,0.00033698,5]
[362006066,1747933869999,-789.17,0.00033698,5]
[362006067,1747933870009,-420.0,0.00033698,5]
[362006068,1747933870018,-420.0,0.00033698,5]
[362006069,1747933870027,-649.66,0.00033698,5]
[362006070,1747933870036,-595.12,0.00033698,5]
[362006071,1747933870045,-420.0,0.00033698,5]
[362006072,1747933870055,-509.16,0.00033698,5]
[362006073,1747933870064,-420.0,0.00033698,5]
[362006074,1747933870074,-433.89,0.00033698,5]
[362006075,1747933870083,-420.0,0.00033698,5]
[362006076,1747933870093,-420.0,0.00033698,5]
[362006077,1747933870102,-420.0,0.00033698,5]
[362006078,1747933870112,-420.0,0.00033698,5]
[362006079,1747933870122,-498.61,0.00033698,5]
[362006080,1747933870131,-420.0,0.00033698,5]
[362006081,1747933870141,-580.11,0.00033698,5]
[362006082,1747933870150,-573.53,0.00033698,5]
[362006083,1747933870160,-1000.0,0.00033698,5]
[362006084,1747933870170,-420.0,0.00033698,5]
[362006085,1747933870179,-420.0,0.00033698,5]
[362006086,1747933870188,-608.49,0.00033698,5]
[362006087,1747933870198,-420.0,0.00033698,5]
[362006088,1747933870207,-425.68,0.00033698,5]
[362006089,1747933870216,-420.0,0.00033698,5]
[362006090,1747933870227,-481.58,0.00033698,5]
[362006091,1747933870237,-730.27,0.00033698,5]
[362006092,1747933870246,-1071.99,0.00033698,5]
[362006093,1747933870255,-420.0,0.00033698,5]
[362006094,1747933870264,-420.0,0.00033698,5]
[362006095,1747933870355,-420.0,0.00033698,5]
[362006096,1747933870364,-210.82410059,0.00033698,5]
[362006097,1747933870374,-420.0,0.00033698,5]
[362006098,1747933870383,-420.0,0.00033698,5]
[362006099,1747933870393,-451.52,0.00033698,5]
[362006100,1747933870403,-4192.77,0.00033698,5]
[362006101,1747933870412,-515.3,0.00033698,5]
[362006102,1747933870422,-420.0,0.00033698,5]
[362006103,1747933870432,-420.0,0.00033698,5]
[362006104,1747933870441,-420.0,0.00033698,5]
[362006105,1747933870451,-420.0,0.00033698,5]
[362006106,1747933870460,-420.0,0.00033698,5]
[362006107,1747933870469,-709.41,0.00033698,5]
[362006108,1747933870478,-510.74,0.00033698,5]
[362006109,1747933870488,-2867.71,0.00033698,5]
[362006110,1747933870497,-688.79,0.00033698,5]
[362006111,1747933870507,-420.0,0.00033698,5]
[362006112,1747933870516,-576.22,0.00033698,5]
[362006113,1747933870526,-478.42,0.00033698,5]
[362006114,1747933870535,-420.0,0.00033698,5]
[362006115,1747933870545,-566.07,0.00033698,5]
[362006116,1747933870554,-420.0,0.00033698,5]
[362006117,1747933870564,-636.56,0.00033698,5]
[362006118,1747933870573,-701.85,0.00033698,5]
[362006119,1747933870583,-776.15,0.00033698,5]
[362006120,1747933870592,-420.0,0.00033698,5]
[362006121,1747933870602,-420.0,0.00033698,5]
[362006122,1747933870612,-420.0,0.00033698,5]
[362006123,1747933870621,-719.59,0.00033698,5]
[362006124,1747933870631,-5440.18,0.00033698,5]
[362006125,1747933870640,-420.0,0.00033698,5]
[362006126,1747933870650,-534.54813007,0.00033698,5]
[362006127,1747933870659,-420.0,0.00033698,5]
[362006128,1747933870669,-2209.94,0.00033698,5]
[362006129,1747933870678,-420.0,0.00033698,5]
[362006130,1747933870688,-420.0,0.00033698,5]
[362006131,1747933870698,-761.94,0.00033698,5]
[362006132,1747933870708,-6144.99,0.00033698,5]
[362006133,1747933870717,-771.06,0.00033698,5]
[362006134,1747933870726,-420.0,0.00033698,5]
[362006135,1747933870737,-689.72,0.00033698,5]
[362006136,1747933870750,-420.0,0.00033698,5]
[362006137,1747933870760,-557.56,0.00033698,5]
[362006138,1747933870769,-698.33,0.00033698,5]
[362006139,1747933870779,-681.1,0.00033698,5]
[362006140,1747933870790,-951.74,0.00033698,5]
[362006141,1747933870800,-420.0,0.00033698,5]
[362006142,1747933870809,-272.69369082,0.00033698,5]
[362006143,1747933870820,-1002.07,0.00033698,5]
[362006144,1747933870830,-481.91773461,0.00033698,5]
[362006145,1747933870839,-2150.16,0.00033698,5]
[362006146,1747933870848,-420.0,0.00033698,5]
[362006147,1747933870858,-769.67,0.00033698,5]
[362006148,1747933870867,-1224.35,0.00033698,5]
[362006149,1747933870877,-941.44,0.00033698,5]
[362006150,1747933870886,-728.12,0.00033698,5]
[362006151,1747933870896,-1921.29,0.00033698,5]
[362006152,1747933870905,-420.0,0.00033698,5]
[362006153,1747933870915,-420.0,0.00033698,5]
[362006154,1747933870924,-570.73,0.00033698,5]
[362006155,1747933870933,-420.0,0.00033698,5]
[362006156,1747933870942,-625.47,0.00033698,5]
[362006157,1747933870952,-420.0,0.00033698,5]
[362006158,1747933870961,-420.0,0.00033698,5]
[362006159,1747933870971,-420.0,0.00033698,5]
[362006160,1747933870980,-3607.16,0.00033698,5]
[362006161,1747933870991,-981.4,0.00033698,5]
[362006162,1747933870999,-1224.05,0.00033698,5]
[362006163,1747933871008,-420.0,0.00033698,5]
[362006164,1747933871017,-420.0,0.00033698,5]
[362006165,1747933871026,-420.0,0.00033698,5]
[362006166,1747933871035,-769.81,0.00033698,5]
[362006167,1747933871044,-420.0,0.00033698,5]
[362006168,1747933871053,-420.0,0.00033698,5]
[362006169,1747933871062,-377.72288772,0.00033698,5]
[362006170,1747933871071,-537.06,0.00033698,5]
[362006171,1747933871080,-4553.04,0.00033698,5]
[362006172,1747933871089,-420.0,0.00033698,5]
[362006173,1747933871098,-1136.33,0.00033698,5]
[362006174,1747933871107,-602.44,0.00033698,5]
[362006175,1747933871117,-420.0,0.00033698,5]
[362006176,1747933871126,-682.83,0.00033698,5]
[362006177,1747933871135,-545.53,0.00033698,5]
[362006178,1747933871144,-617.12,0.00033698,5]
[362006179,1747933871153,-420.0,0.00033698,5]
[362006180,1747933871162,-578.41,0.00033698,5]
[362006181,1747933871171,-513.49339877,0.00033698,5]
[362006182,1747933871180,-20351.89,0.00033698,5]
[362006183,1747933871189,-476.43,0.00033698,5]
[362006184,1747933871198,-477.04,0.00033698,5]
[362006185,1747933871208,-420.0,0.00033698,5]
[362006186,1747933871217,-490.47,0.00033698,5]
[362006187,1747933871226,-420.0,0.00033698,5]
[362006188,1747933871236,-420.0,0.00033698,5]
[362006189,1747933871245,-420.0,0.00033698,5]
[362006190,1747933871254,-420.0,0.00033698,5]
[362006191,1747933871263,-811.02,0.00033698,5]
[362006192,1747933871272,-1689.12,0.00033698,5]
[362006193,1747933871282,-1378.26,0.00033698,5]
[362006194,1747933871291,-505.25,0.00033698,5]
[362006195,1747933871300,-898.43,0.00033698,5]
[362006196,1747933871309,-420.0,0.00033698,5]
[362006197,1747933871318,-420.0,0.00033698,5]
[362006198,1747933871328,-997.18,0.00033698,5]
[362006199,1747933871337,-420.0,0.00033698,5]
[362006200,1747933871346,-660.15,0.00033698,5]
[362006201,1747933871356,-420.0,0.00033698,5]
[362006202,1747933871365,-703.8,0.00033698,5]
[362006203,1747933871375,-420.0,0.00033698,5]
[362006204,1747933871384,-550.31,0.00033698,5]
[362006205,1747933871393,-449.16,0.00033698,5]
[362006206,1747933871402,-420.0,0.00033698,5]
[362006207,1747933871412,-550.58,0.00033698,5]
[362006208,1747933871421,-472.36,0.00033698,5]
[362006209,1747933871430,-822.44,0.00033698,5]
[362006210,1747933871440,-716.72,0.00033698,5]
[362006211,1747933871450,-420.0,0.00033698,5]
[362006212,1747933871459,-420.0,0.00033698,5]
[362006213,1747933871469,-420.0,0.00033698,5]
[362006214,1747933871478,-1008.83,0.00033698,5]
[362006215,1747933871488,-867.21,0.00033698,5]
[362006216,1747933871497,-469.62,0.00033698,5]
[362006217,1747933871506,-745.26,0.00033698,5]
[362006218,1747933871516,-652.81,0.00033698,5]
[362006219,1747933871525,-420.0,0.00033698,5]
[362006220,1747933871535,-420.0,0.00033698,5]
[362006221,1747933871544,-420.0,0.00033698,5]
[362006222,1747933871553,-420.0,0.00033698,5]
[362006223,1747933871563,-420.0,0.00033698,5]
[362006224,1747933871572,-441.89,0.00033698,5]
[362006225,1747933871582,-420.0,0.00033698,5]
[362006226,1747933871597,-420.0,0.00033698,5]
[362006227,1747933871607,-1035.38,0.00033698,5]
[362006228,1747933871617,-420.0,0.00033698,5]
[362006229,1747933871627,-420.0,0.00033698,5]
[362006230,1747933871637,-420.0,0.00033698,5]
[362006231,1747933871646,-916.68,0.00033698,5]
[362006232,1747933871656,-1558.06,0.00033698,5]
[362006233,1747933871665,-420.0,0.00033698,5]
[362006234,1747933871674,-420.0,0.00033698,5]
[362006235,1747933871683,-333.65621792,0.00033698,5]
[362006236,1747933871694,-420.0,0.00033698,5]